fUST/lending_fUST_20250223
["ID","MTS","AMOUNT","RATE_DAILY","PERIOD"]
[354108700,1740247838721,-500.0,0.00014027,2]
[354108701,1740247838730,-234.74,0.00014027,2]
[354108702,1740247838739,-500.0,0.00014027,2]
[354108703,1740247838749,-500.0,0.00014027,2]
[354108704,1740247838759,-1680.81,0.00014027,2]
[354108705,1740247838768,-500.0,0.00014027,2]
[354108706,1740247838777,-559.56,0.00014027,2]
[354108707,1740247838786,-500.0,0.00014027,2]
[354108708,1740247838796,-500.0,0.00014027,2]
[354108709,1740247838805,-4493.8,0.00014027,2]
[354108710,1740247838815,-151.0,0.00014027,2]
[354108711,1740247838824,-500.0,0.00014027,2]
[354108713,1740247838834,-500.0,0.00014027,2]
[354108714,1740247838843,-903.13,0.00014027,2]
[354108715,1740247838852,-500.0,0.00014027,2]
[354108717,1740247838861,-151.0,0.00014027,2]
[354108718,1740247838870,-578.69,0.00014027,2]
[354108719,1740247838879,-477.114399,0.00014027,2]
[354108720,1740247838889,-500.0,0.00014027,2]
[354108721,1740247838898,-477.114399,0.00014027,2]
[354108722,1740247838907,-500.0,0.00014027,2]
[354108723,1740247838917,-500.0,0.00014027,2]
[354108724,1740247838927,-151.0,0.00014027,2]
[354108725,1740247838936,-500.0,0.00014027,2]
[354108726,1740247838945,-500.0,0.00014027,2]
[354108727,1740247838957,-151.0,0.00014027,2]
[354108728,1740247838966,-500.0,0.00014054,2]
[354108729,1740247838975,-500.0,0.00014109,2]
[354108730,1740247838985,-374.0,0.00014109,2]
[354108731,1740247838995,-306.7,0.00014109,2]
[354108732,1740247839004,-151.0,0.00014109,2]
[354108733,1740247839014,-151.0,0.00014109,2]
[354108734,1740247839023,-500.0,0.00014109,2]
[354108735,1740247839032,-153.441423,0.00014109,2]
[354108736,1740247839042,-439.67,0.00014109,2]
[354108737,1740247839052,-153.441423,0.00014109,2]
[354108738,1740247839061,-339.448998,0.00014109,2]
[354108739,1740247839070,-339.448998,0.00014109,2]
[354108740,1740247839080,-500.0,0.00014109,2]
[354108741,1740247839089,-151.0,0.00014109,2]
[354108742,1740247839098,-500.0,0.00014109,2]
[354108743,1740247839108,-151.0,0.00014109,2]
[354108744,1740247839119,-151.0,0.00014109,2]
[354108745,1740247839128,-198.94399344,0.00014109,2]
[354108746,1740247839141,-293.17236456,0.00014109,2]
[354108747,1740247839150,-492.116358,0.00014109,2]
[354108748,1740247839160,-1680.81,0.00014109,2]
[354108749,1740247839169,-500.0,0.00014109,2]
[354108750,1740247839178,-243.49278719,0.00014109,2]
[354108751,1740247839190,-256.50721281,0.00014109,2]
[354108752,1740247839199,-500.0,0.00014109,2]
[354108753,1740247839209,-4493.8,0.00014109,2]
[354108754,1740247839219,-552.92,0.00014109,2]
[354108755,1740247839228,-486.58,0.00014109,2]
[354108756,1740247839238,-151.0,0.00014109,2]
[354108757,1740247839247,-903.13,0.00014109,2]
[354108758,1740247839257,-151.0,0.00014109,2]
[354108759,1740247839267,-500.0,0.00014109,2]
[354108760,1740247839276,-578.69,0.00014109,2]
[354108761,1740247839285,-500.0,0.00014109,2]
[354108762,1740247839295,-500.0,0.00014109,2]
[354108763,1740247839304,-500.0,0.00014109,2]
[354108764,1740247839313,-500.0,0.00014109,2]
[354108765,1740247839322,-500.0,0.00014109,2]
[354108766,1740247839332,-362.94,0.00014191,2]
[354108767,1740247839341,-151.0,0.00014191,2]
[354108768,1740247839350,-151.0,0.00014191,2]
[354108769,1740247839360,-151.0,0.00014191,2]
[354108770,1740247839369,-151.677288,0.00014191,2]
[354108771,1740247839379,-151.0,0.00014191,2]
[354108772,1740247839388,-151.677288,0.00014191,2]
[354108773,1740247839398,-151.0,0.00014191,2]
[354108774,1740247839408,-580.070052,0.00014191,2]
[354108775,1740247839418,-580.070052,0.00014191,2]
[354108776,1740247839427,-500.0,0.00014191,2]
[354108777,1740247839436,-500.0,0.00014191,2]
[354108778,1740247839445,-500.0,0.00014191,2]
[354108779,1740247839456,-1680.81,0.00014191,2]
[354108780,1740247839465,-500.0,0.00014191,2]
[354108781,1740247839475,-500.0,0.00014191,2]
[354108782,1740247839484,-500.0,0.00014191,2]
[354108783,1740247839494,-4493.8,0.00014191,2]
[354108784,1740247839504,-903.13,0.00014191,2]
[354108785,1740247839513,-500.0,0.00014191,2]
[354108786,1740247839523,-578.69,0.00014191,2]
[354108787,1740247839532,-500.0,0.00014191,2]
[354108788,1740247839542,-500.0,0.00014191,2]
[354108789,1740247839553,-500.0,0.00014191,2]
[354108790,1740247839563,-500.0,0.00014191,2]
[354108791,1740247839573,-500.0,0.00014191,2]
[354108792,1740247839583,-151.0,0.00014272,2]
[354108793,1740247839595,-151.0,0.00014272,2]
[354108794,1740247839605,-151.0,0.00014272,2]
[354108795,1740247839614,-500.0,0.00014273,2]
[354108796,1740247839623,-500.0,0.00014273,2]
[354108797,1740247839635,-500.0,0.00014273,2]
[354108798,1740247839645,-1680.81,0.00014273,2]
[354108799,1740247839654,-500.0,0.00014273,2]
[354108800,1740247839666,-500.0,0.00014273,2]
[354108801,1740247839675,-454.02,0.00014273,2]
[354108802,1740247839684,-4493.8,0.00014273,2]
[354108803,1740247839694,-903.13,0.00014273,2]
[354108804,1740247839704,-500.0,0.00014273,2]
[354108805,1740247839714,-578.69,0.00014273,2]
[354108806,1740247839724,-500.0,0.00014273,2]
[354108807,1740247839734,-500.0,0.00014273,2]
[354108808,1740247839743,-500.0,0.00014273,2]
[354108809,1740247839753,-609.38,0.00014273,2]
[354108810,1740247839762,-500.0,0.00014273,2]
[354108811,1740247839772,-1000.0,0.00014321,2]
[354108812,1740247839782,-486.78569161,0.00014321,2]
[354108813,1740247839791,-500.0,0.00014328,2]
[354108814,1740247839800,-500.0,0.00014356,2]
[354108815,1740247839810,-500.0,0.00014356,2]
[354108816,1740247839819,-596.48,0.00014356,2]
[354108817,1740247839828,-1680.81,0.00014356,2]
[354108818,1740247839838,-500.0,0.00014356,2]
[354108819,1740247839848,-500.0,0.00014356,2]
[354108820,1740247839857,-4493.8,0.00014356,2]
[354108821,1740247839867,-903.13,0.00014356,2]
[354108822,1740247839877,-500.0,0.00014356,2]
[354108823,1740247839886,-578.69,0.00014356,2]
[354108824,1740247839896,-390.15,0.00014356,2]
[354108825,1740247839906,-500.0,0.00014356,2]
[354108826,1740247839916,-500.0,0.00014356,2]
[354108827,1740247839925,-500.0,0.00014356,2]
[354108828,1740247839934,-151.0,0.00014437,2]
[354108829,1740247839944,-151.0,0.00014437,2]
[354108830,1740247839955,-151.0,0.00014437,2]
[354108831,1740247839964,-151.0,0.00014437,2]
[354108832,1740247839974,-151.0,0.00014437,2]
[354108833,1740247839984,-257.9677,0.00014437,2]
[354108834,1740247839993,-151.0,0.00014437,2]
[354108835,1740247840003,-151.0,0.00014437,2]
[354108836,1740247840012,-151.0,0.00014437,2]
[354108837,1740247840021,-531.40337999,0.00014437,2]
[354108838,1740247840031,-500.0,0.00014438,2]
[354108839,1740247840041,-161.38,0.00014438,2]
[354108840,1740247840050,-1680.81,0.00014438,2]
[354108841,1740247840059,-500.0,0.00014438,2]
[354108842,1740247840069,-190.74,0.00014438,2]
[354108843,1740247840078,-4493.8,0.00014438,2]
[354108844,1740247840087,-151.0,0.00014438,2]
[354108845,1740247840096,-903.13,0.00014438,2]
[354108846,1740247840106,-500.0,0.00014438,2]
[354108847,1740247840115,-151.0,0.00014438,2]
[354108848,1740247840124,-578.69,0.00014438,2]
[354108849,1740247840133,-477.114399,0.00014438,2]
[354108850,1740247840143,-477.114399,0.00014438,2]
[354108851,1740247840152,-599.4,0.00014438,2]
[354108852,1740247840161,-500.0,0.00014438,2]
[354108853,1740247840171,-151.0,0.00014438,2]
[354108854,1740247840180,-500.0,0.00014438,2]
[354108855,1740247840189,-254.655416,0.0001452,2]
[354108856,1740247840198,-151.0,0.0001452,2]
[354108857,1740247840209,-308.61,0.0001452,2]
[354108858,1740247840219,-153.441423,0.0001452,2]
[354108859,1740247840230,-153.441423,0.0001452,2]
[354108860,1740247840239,-339.448998,0.0001452,2]
[354108861,1740247840249,-339.448998,0.0001452,2]
[354108862,1740247840258,-238.0,0.0001452,2]
[354108863,1740247840267,-151.0,0.0001452,2]
[354108864,1740247840276,-151.0,0.0001452,2]
[354108865,1740247840285,-492.116358,0.0001452,2]
[354108866,1740247840294,-492.116358,0.0001452,2]
[354108867,1740247840303,-1680.81,0.0001452,2]
[354108868,1740247840312,-608.68,0.0001452,2]
[354108869,1740247840321,-4493.8,0.0001452,2]
[354108870,1740247840330,-151.0,0.0001452,2]
[354108871,1740247840339,-151.0,0.0001452,2]
[354108872,1740247840349,-903.13,0.0001452,2]
[354108873,1740247840358,-500.0,0.0001452,2]
[354108874,1740247840367,-578.69,0.0001452,2]
[354108876,1740247840376,-500.0,0.0001452,2]
[354108878,1740247840386,-500.0,0.0001452,2]
[354108880,1740247840395,-500.0,0.00014602,2]
[354108881,1740247840404,-151.0,0.00014602,2]
[354108883,1740247840413,-580.070052,0.00014602,2]
[354108885,1740247840422,-580.070052,0.00014602,2]
[354108886,1740247840431,-1680.81,0.00014602,2]
[354108888,1740247840441,-4493.8,0.00014602,2]
[354108889,1740247840451,-903.13,0.00014602,2]
[354108890,1740247840460,-500.0,0.00014602,2]
[354108891,1740247840469,-578.69,0.00014602,2]
[354108892,1740247840478,-500.0,0.00014602,2]
[354108893,1740247840487,-500.0,0.00014602,2]
[354108894,1740247840496,-4150.03049111,0.00014676,2]
[354108897,1740247840510,-3455.07011468,0.00014676,2]
[354108904,1740247840668,-1814.33275214,0.00014676,2]
[354108906,1740247840680,-3505.46338641,0.00014676,2]
[354108907,1740247840690,-94.57030959,0.00014676,2]
[354108908,1740247840701,-56.42969041,0.00014676,2]
[354108909,1740247840710,-151.0,0.00014676,2]
[354108910,1740247840719,-151.0,0.00014676,2]
[354108911,1740247840728,-39.72124853,0.00014676,2]
[354108912,1740247840775,-111.95603947,0.00014676,2]
[354108914,1740247840784,-151.0,0.00014676,2]
[354108916,1740247840793,-151.677288,0.00014676,2]
[354108917,1740247840803,-151.0,0.00014683,2]
[354108918,1740247840812,-151.0,0.00014683,2]
[354108919,1740247840821,-151.0,0.00014683,2]
[354108920,1740247840830,-1680.81,0.00014684,2]
[354108921,1740247840839,-4493.8,0.00014684,2]
[354108922,1740247840849,-903.13,0.00014684,2]
[354108923,1740247840858,-500.0,0.00014684,2]
[354108924,1740247840868,-578.69,0.00014684,2]
[354108925,1740247840878,-500.0,0.00014684,2]
[354108926,1740247840889,-478.28,0.00014684,2]
[354108927,1740247840899,-500.0,0.00014699,2]
[354108928,1740247840911,-1680.81,0.00014767,2]
[354108929,1740247840920,-4493.8,0.00014767,2]
[354108930,1740247840929,-903.13,0.00014767,2]
[354108931,1740247840938,-512.26,0.00014767,2]
[354108932,1740247840947,-578.69,0.00014767,2]
[354108933,1740247840956,-500.0,0.00014767,2]
[354108934,1740247840966,-151.0,0.00014767,2]
[354108935,1740247840975,-151.0,0.000148,2]
[354108936,1740247840984,-151.0,0.000148,2]
[354108937,1740247840993,-492.116358,0.000148,2]
[354108938,1740247841086,-492.116358,0.000148,2]
[354108939,1740247841097,-151.0,0.000148,2]
[354108940,1740247841109,-151.0,0.000148,2]
[354108941,1740247841118,-151.0,0.000148,2]
[354108942,1740247841128,-151.0,0.000148,2]
[354108943,1740247841139,-477.114399,0.000148,2]
[354108944,1740247841149,-477.114399,0.000148,2]
[354108945,1740247841161,-1680.81,0.00014849,2]
[354108946,1740247841171,-4493.8,0.00014849,2]
[354108947,1740247841182,-903.13,0.00014849,2]
[354108948,1740247841191,-578.69,0.00014849,2]
[354108949,1740247841201,-500.0,0.00014849,2]
[354108950,1740247841212,-310.936,0.00014854,2]
[354108951,1740247841221,-500.0,0.00014876,2]
[354108952,1740247841230,-151.0,0.0001493,2]
[354108953,1740247841239,-151.0,0.0001493,2]
[354108954,1740247841248,-151.0,0.0001493,2]
[354108955,1740247841258,-151.0,0.0001493,2]
[354108956,1740247841267,-151.0,0.0001493,2]
[354108957,1740247841276,-151.0,0.0001493,2]
[354108958,1740247841285,-151.0,0.0001493,2]
[354108959,1740247841294,-151.0,0.0001493,2]
[354108960,1740247841304,-153.441423,0.0001493,2]
[354108961,1740247841312,-153.441423,0.0001493,2]
[354108962,1740247841321,-339.448998,0.0001493,2]
[354108963,1740247841330,-339.448998,0.0001493,2]
[354108964,1740247841339,-1680.81,0.00014931,2]
[354108965,1740247841348,-4493.8,0.00014931,2]
[354108966,1740247841357,-903.13,0.00014931,2]
[354108967,1740247841366,-578.69,0.00014931,2]
[354108968,1740247841375,-500.0,0.00014931,2]
[354108969,1740247841385,-151.0,0.00015013,2]
[354108970,1740247841394,-580.070052,0.00015013,2]
[354108971,1740247841403,-580.070052,0.00015013,2]
[354108972,1740247841413,-1680.81,0.00015013,2]
[354108973,1740247841421,-814.63768891,0.00015013,2]
[354108982,1740247843478,-3679.16231109,0.00015013,2]
[354108983,1740247843488,-903.13,0.00015013,2]
[354108984,1740247843498,-578.69,0.00015013,2]
[354108985,1740247843509,-500.0,0.00015013,2]
[354108986,1740247843519,-215.0,0.00015028,2]
[354108987,1740247843528,-500.0,0.00015063,2]
[354108988,1740247843538,-581.54249387,0.00015063,2]
[354108989,1740247843548,-537.18131051,0.00015068,2]
[354108990,1740247843558,-151.0,0.00015094,2]
[354108991,1740247843568,-151.0,0.00015094,2]
[354108992,1740247843578,-248.023838,0.00015094,2]
[354108993,1740247843589,-151.0,0.00015094,2]
[354108994,1740247843599,-151.677288,0.00015094,2]
[354108995,1740247843609,-1680.81,0.00015095,2]
[354108996,1740247843619,-4493.8,0.00015095,2]
[354108997,1740247843630,-903.13,0.00015095,2]
[354108998,1740247843640,-201.23899337,0.00015095,2]
[354108999,1740247843653,-377.45100663,0.00015095,2]
[354109000,1740247843663,-186.78899337,0.00015095,2]
[354109001,1740247843674,-313.21100663,0.00015095,2]
[354109002,1740247843684,-500.0,0.0001515,2]
[354109003,1740247843693,-900.69433694,0.00015178,2]
[354109004,1740247843705,-780.11566306,0.00015178,2]
[354109005,1740247843715,-3079.35102675,0.00015178,2]
[354109006,1740247843727,-1414.44897325,0.00015178,2]
[354109007,1740247843737,-903.13,0.00015178,2]
[354109008,1740247843747,-578.69,0.00015178,2]
[354109009,1740247843757,-306.8,0.00015178,2]
[354109010,1740247843767,-1680.81,0.0001526,2]
[354109011,1740247843777,-993.86371531,0.0001526,2]
[354109012,1740247843789,-3499.93628469,0.0001526,2]
[354109013,1740247843799,-903.13,0.0001526,2]
[354109014,1740247843808,-578.69,0.0001526,2]
[354109015,1740247843818,-1500.0,0.00015322,2]
[354109016,1740247843827,-151.0,0.00015341,2]
[354109017,1740247843836,-151.0,0.00015341,2]
[354109018,1740247843845,-151.0,0.00015341,2]
[354109019,1740247843854,-151.0,0.00015341,2]
[354109020,1740247843864,-1680.81,0.00015342,2]
[354109021,1740247843873,-4493.8,0.00015342,2]
[354109022,1740247843883,-903.13,0.00015342,2]
[354109023,1740247843892,-578.69,0.00015342,2]
[354109024,1740247843902,-500.0,0.00015423,2]
[354109025,1740247843911,-500.0,0.00015424,2]
[354109026,1740247843920,-190.409234,0.00015424,2]
[354109027,1740247843930,-151.0,0.00015424,2]
[354109028,1740247843939,-492.116358,0.00015424,2]
[354109029,1740247843948,-492.116358,0.00015424,2]
[354109030,1740247843957,-1680.81,0.00015424,2]
[354109031,1740247843967,-4493.8,0.00015424,2]
[354109032,1740247843977,-151.0,0.00015424,2]
[354109033,1740247843986,-151.0,0.00015424,2]
[354109034,1740247843995,-151.0,0.00015424,2]
[354109035,1740247844005,-903.13,0.00015424,2]
[354109036,1740247844014,-151.0,0.00015424,2]
[354109037,1740247844024,-578.69,0.00015424,2]
[354109038,1740247844033,-477.114399,0.00015424,2]
[354109039,1740247844043,-477.114399,0.00015424,2]
[354109040,1740247844052,-151.0,0.00015424,2]
[354109041,1740247844061,-500.0,0.00015434,2]
[354109042,1740247844071,-151.0,0.00015506,2]
[354109043,1740247844080,-153.441423,0.00015506,2]
[354109044,1740247844090,-153.441423,0.00015506,2]
[354109045,1740247844099,-339.448998,0.00015506,2]
[354109046,1740247844108,-339.448998,0.00015506,2]
[354109047,1740247844118,-1680.81,0.00015506,2]
[354109048,1740247844127,-4493.8,0.00015506,2]
[354109049,1740247844137,-903.13,0.00015506,2]
[354109050,1740247844146,-578.69,0.00015506,2]
[354109051,1740247844156,-1680.81,0.00015589,2]
[354109052,1740247844165,-4493.8731,0.00015589,2]
[354109053,1740247844175,-903.16,0.00015589,2]
[354109054,1740247844184,-578.88694741,0.00015589,2]
[354109055,1740247844194,-1000.0,0.0001561,2]
[354109056,1740247844204,-151.0,0.0001567,2]
[354109057,1740247844213,-151.0,0.0001567,2]
[354109058,1740247844223,-151.0,0.0001567,2]
[354109059,1740247844232,-151.0,0.0001567,2]
[354109060,1740247844241,-151.0,0.0001567,2]
[354109061,1740247844250,-151.0,0.0001567,2]
[354109062,1740247844259,-151.0,0.0001567,2]
[354109063,1740247844268,-207.89451888,0.00015698,2]
[354109064,1740247844278,-170.092284,0.00015698,2]
[354109065,1740247844287,-580.070052,0.00015698,2]
[354109066,1740247844297,-580.070052,0.00015698,2]
[354109067,1740247844307,-252.367836,0.00015775,2]
[354109068,1740247844316,-150.0,0.00015845,2]
[354109069,1740247844325,-538.0,0.00015845,2]
[354109070,1740247844335,-1970.0,0.00015845,2]
[354109071,1740247844344,-2287.0,0.00015845,2]
[354109072,1740247844354,-396.0,0.00015845,2]
[354109073,1740247844363,-500.01,0.00016164,2]
[354109074,1740247844372,-260.4744528,0.00016169,2]
[354109075,1740247844381,-151.0,0.00016185,2]
[354109076,1740247844390,-151.0,0.00016185,2]
[354109077,1740247844399,-151.677288,0.00016185,2]
[354109078,1740247844409,-151.0,0.00016185,2]
[354109079,1740247844419,-151.677288,0.00016185,2]
[354109080,1740247844428,-500.0,0.00016206,2]
[354109081,1740247844437,-13278.19900895,0.00016252,2]
[354109082,1740247844446,-3000.0,0.000164,2]
[354109083,1740247844455,-151.0,0.0001649,2]
[354109084,1740247844465,-492.116358,0.0001649,2]
[354109085,1740247844474,-492.116358,0.0001649,2]
[354109086,1740247844484,-151.0,0.0001649,2]
[354109087,1740247844493,-151.0,0.0001649,2]
[354109088,1740247844503,-151.0,0.0001649,2]
[354109089,1740247844512,-18596.75175698,0.000165,5]
[354109090,1740247844522,-1038.50360086,0.000165,5]
[354109091,1740247844531,-91313.92915035,0.000165,8]
[354109107,1740247846497,-41308.98314013,0.000165,8]
[354109109,1740247846508,-71410.7517505,0.000165,8]
[354109129,1740247948476,242.950107,9.041e-05,2]
[354109130,1740248292657,1830.09,0.00019,120]
[354109131,1740248913049,1098.07016083,0.00018172,90]
[354109140,1740249030423,246.830704,9.041e-05,2]
[354109146,1740249031722,-1731.32662293,0.00012761,2]
[354109147,1740249031732,-300.0,0.00012861,2]
[354109148,1740249031741,-24900.0,0.00012862,2]
[354109149,1740249031751,-716.68070058,0.00013598,2]
[354109150,1740249031761,-500.37179854,0.00013673,2]
[354109151,1740249031771,-500.0,0.00013673,2]
[354109152,1740249031780,-500.0,0.00013673,2]
[354109153,1740249031789,-160.09845753,0.00013673,2]
[354109154,1740249031800,-152.12247777,0.00013673,2]
[354109155,1740249031810,-163.40248927,0.00013673,2]
[354109156,1740249031819,-500.0,0.00013673,2]
[354109157,1740249031829,-300.0,0.00013697,2]
[354109158,1740249031838,-500.0,0.00013697,2]
[354109159,1740249031848,-500.0,0.00013697,2]
[354109160,1740249031857,-500.0,0.00013697,2]
[354109161,1740249031867,-500.0,0.00013697,2]
[354109162,1740249031876,-500.0,0.00013697,2]
[354109163,1740249031886,-500.0,0.00013697,2]
[354109164,1740249031895,-500.0,0.00013697,2]
[354109165,1740249031904,-259.89970412,0.00013697,2]
[354109166,1740249031913,-246.24319013,0.00013697,2]
[354109167,1740249031922,-500.0,0.00013697,2]
[354109168,1740249031931,-500.86906289,0.00013698,2]
[354109169,1740249031941,-500.0,0.00013698,2]
[354109170,1740249031951,-500.0,0.00013698,2]
[354109171,1740249031961,-500.0,0.00013698,2]
[354109172,1740249031973,-500.0,0.00013698,2]
[354109173,1740249031983,-505.18612481,0.00013698,2]
[354109174,1740249031993,-314.94481202,0.00013698,2]
[354109175,1740249032002,-500.0,0.00013698,2]
[354109176,1740249032014,-500.0,0.00013698,2]
[354109177,1740249032024,-500.0,0.00013698,2]
[354109178,1740249032034,-392.86631651,0.00013698,2]
[354109179,1740249032044,-500.0,0.00013698,2]
[354109180,1740249032054,-500.0,0.00013698,2]
[354109181,1740249032064,-500.0,0.00013698,2]
[354109182,1740249032074,-312.648346,0.00013698,2]
[354109183,1740249032083,-500.0,0.00013698,2]
[354109184,1740249032093,-500.0,0.00013698,2]
[354109185,1740249032103,-500.0,0.00013698,2]
[354109186,1740249032112,-500.0,0.00013698,2]
[354109187,1740249032122,-378.98847536,0.00013698,2]
[354109188,1740249032131,-531.87092043,0.00013698,2]
[354109189,1740249032141,-500.0,0.00013698,2]
[354109190,1740249032150,-503.50980569,0.00013698,2]
[354109191,1740249032159,-500.0,0.00013698,2]
[354109192,1740249032168,-504.55046056,0.00013698,2]
[354109193,1740249032178,-500.0,0.00013698,2]
[354109194,1740249032188,-500.0,0.00013698,2]
[354109195,1740249032197,-500.0,0.00013698,2]
[354109196,1740249032300,-500.0,0.00013698,2]
[354109197,1740249032310,-500.0,0.00013698,2]
[354109198,1740249032320,-504.7154657,0.00013698,2]
[354109199,1740249032329,-454.92224323,0.00013698,2]
[354109200,1740249032338,-500.0,0.00013698,2]
[354109201,1740249032348,-500.0,0.00013698,2]
[354109202,1740249032357,-431.99885466,0.00013698,2]
[354109203,1740249032367,-500.0,0.00013698,2]
[354109204,1740249032377,-500.0,0.00013698,2]
[354109205,1740249032388,-500.0,0.00013698,2]
[354109206,1740249032398,-500.0,0.00013698,2]
[354109207,1740249032408,-500.0,0.00013698,2]
[354109208,1740249032417,-500.0,0.00013698,2]
[354109209,1740249032427,-527.25564271,0.00013698,2]
[354109210,1740249032437,-500.0,0.00013698,2]
[354109211,1740249032446,-500.0,0.00013698,2]
[354109212,1740249032456,-500.0,0.00013698,2]
[354109213,1740249032465,-500.0,0.00013698,2]
[354109214,1740249032475,-500.0,0.00013698,2]
[354109215,1740249032484,-500.0,0.00013698,2]
[354109216,1740249032494,-500.0,0.00013698,2]
[354109217,1740249032504,-577.68026465,0.00013698,2]
[354109218,1740249032513,-500.0,0.00013698,2]
[354109219,1740249032523,-500.0,0.00013698,2]
[354109220,1740249032533,-500.0,0.00013698,2]
[354109221,1740249032542,-500.0,0.00013698,2]
[354109222,1740249032551,-500.0,0.00013698,2]
[354109223,1740249032560,-500.0,0.00013698,2]
[354109224,1740249032569,-500.0,0.00013698,2]
[354109225,1740249032578,-500.0,0.00013698,2]
[354109226,1740249032587,-500.0,0.00013698,2]
[354109227,1740249032596,-500.0,0.00013698,2]
[354109228,1740249032605,-500.0,0.00013698,2]
[354109229,1740249032614,-500.0,0.00013698,2]
[354109230,1740249032623,-500.0,0.00013698,2]
[354109231,1740249032632,-500.0,0.00013698,2]
[354109232,1740249032642,-500.0,0.00013698,2]
[354109233,1740249032651,-500.0,0.00013698,2]
[354109234,1740249032660,-500.0,0.00013698,2]
[354109235,1740249032669,-500.0,0.00013698,2]
[354109236,1740249032678,-500.0,0.00013698,2]
[354109237,1740249032687,-500.0,0.00013698,2]
[354109238,1740249032696,-503.35012541,0.00013698,2]
[354109239,1740249032705,-506.65190305,0.00013698,2]
[354109240,1740249032714,-500.0,0.00013698,2]
[354109241,1740249032723,-502.0,0.00013698,2]
[354109242,1740249032732,-500.0,0.00013698,2]
[354109243,1740249032741,-500.0,0.00013698,2]
[354109244,1740249032750,-310.52549909,0.00013698,2]
[354109245,1740249032759,-500.0,0.00013698,2]
[354109246,1740249032767,-500.0,0.00013698,2]
[354109247,1740249032776,-500.0,0.00013698,2]
[354109248,1740249032785,-500.0,0.00013698,2]
[354109249,1740249032794,-500.0,0.00013698,2]
[354109250,1740249032803,-500.0,0.00013698,2]
[354109251,1740249032812,-500.0,0.00013698,2]
[354109252,1740249032822,-500.0,0.00013698,2]
[354109253,1740249032832,-500.0,0.00013698,2]
[354109254,1740249032841,-500.0,0.00013698,2]
[354109255,1740249032851,-500.0,0.00013698,2]
[354109256,1740249032860,-500.0,0.00013698,2]
[354109257,1740249032869,-500.0,0.00013698,2]
[354109258,1740249032879,-407.90582296,0.00013698,2]
[354109259,1740249032894,-92.09417704,0.00013698,2]
[354109260,1740249032903,-500.0,0.00013698,2]
[354109261,1740249032913,-500.0,0.00013698,2]
[354109262,1740249032922,-500.0,0.00013698,2]
[354109263,1740249032931,-500.0,0.00013698,2]
[354109264,1740249032940,-500.0,0.00013698,2]
[354109265,1740249032949,-500.0,0.00013698,2]
[354109266,1740249032958,-500.0,0.00013698,2]
[354109267,1740249032969,-501.89238646,0.00013698,2]
[354109268,1740249032981,-500.0,0.00013698,2]
[354109269,1740249032990,-503.28929603,0.00013698,2]
[354109270,1740249033000,-500.0,0.00013698,2]
[354109271,1740249033010,-500.0,0.00013698,2]
[354109272,1740249033019,-500.0,0.00013698,2]
[354109273,1740249033029,-500.0,0.00013698,2]
[354109274,1740249033038,-500.0,0.00013698,2]